fUST/lending_fUST_20260610
["ID","MTS","AMOUNT","RATE_DAILY","PERIOD"]
[424717473,1781086247000,-500.0,0.00019178,2]
[424717468,1781086247000,-500.0,0.00019178,2]
[424717488,1781086247000,-826.97,0.00019178,2]
[424717480,1781086247000,-500.0,0.00019178,2]
[424717484,1781086247000,-920.96,0.00019178,2]
[424717486,1781086247000,-500.0,0.00019178,2]
[424717439,1781086247000,-906.36,0.00019178,2]
[424717459,1781086247000,-1888.25,0.00019178,2]
[424717435,1781086247000,-897.86,0.00019178,2]
[424717392,1781086247000,-15397.47,0.00019178,2]
[424717424,1781086247000,-500.0,0.00019178,2]
[424717390,1781086247000,-500.0,0.00019178,2]
[424717385,1781086247000,-1004.24571621,0.00019178,2]
[424717388,1781086247000,-500.0,0.00019178,2]
[424717386,1781086247000,-500.0,0.00019178,2]
[424717394,1781086247000,-500.0,0.00019178,2]
[424717398,1781086247000,-501.89793194,0.00019178,2]
[424717405,1781086247000,-500.0,0.00019178,2]
[424717396,1781086247000,-1113.2,0.00019178,2]
[424717399,1781086247000,-940.32,0.00019178,2]
[424717403,1781086247000,-500.0,0.00019178,2]
[424717401,1781086247000,-500.90681715,0.00019178,2]
[424717437,1781086247000,-500.0,0.00019178,2]
[424717407,1781086247000,-1806.07,0.00019178,2]
[424717413,1781086247000,-500.0,0.00019178,2]
[424717417,1781086247000,-500.0,0.00019178,2]
[424717411,1781086247000,-500.0,0.00019178,2]
[424717415,1781086247000,-500.0,0.00019178,2]
[424717419,1781086247000,-502.05040659,0.00019178,2]
[424717430,1781086247000,-585.57,0.00019178,2]
[424717432,1781086247000,-1402.24,0.00019178,2]
[424717426,1781086247000,-500.0,0.00019178,2]
[424717422,1781086247000,-500.0,0.00019178,2]
[424717428,1781086247000,-4019.27,0.00019178,2]
[424717420,1781086247000,-511.53,0.00019178,2]
[424717409,1781086247000,-2257.91,0.00019178,2]
[424717496,1781086247000,-500.0,0.00019178,2]
[424717478,1781086247000,-600.73,0.00019178,2]
[424717492,1781086247000,-500.0,0.00019178,2]
[424717539,1781086247000,-1869.49181788,0.000193,2]
[424717540,1781086247000,-151.0,0.00019333,2]
[424717541,1781086247000,-151.0,0.00019333,2]
[424717542,1781086247000,-300.0,0.00019353,2]
[424717545,1781086247000,-300.0,0.00019353,2]
[424717546,1781086247000,-300.0,0.00019353,2]
[424717543,1781086247000,-300.0,0.00019353,2]
[424717544,1781086247000,-300.0,0.00019353,2]
[424717548,1781086247000,-1243.3265,0.00019452,2]
[424717547,1781086247000,-156.58,0.00019354,2]
[424717549,1781086247000,-581.87,0.00019452,2]
[424717538,1781086247000,-825.0,0.00019267,2]
[424717552,1781086247000,-500.0,0.00019452,2]
[424717553,1781086247000,-500.0,0.00019452,2]
[424717555,1781086247000,-500.0,0.00019452,2]
[424717554,1781086247000,-500.0,0.00019452,2]
[424717556,1781086247000,-500.0,0.00019452,2]
[424717558,1781086247000,-500.0,0.00019452,2]
[424717559,1781086247000,-500.0,0.00019452,2]
[424717557,1781086247000,-500.0,0.00019452,2]
[424717561,1781086247000,-500.0,0.00019452,2]
[424717560,1781086247000,-500.0,0.00019452,2]
[424717562,1781086247000,-570.91,0.00019452,2]
[424717494,1781086247000,-2093.26,0.00019178,2]
[424717551,1781086247000,-500.0,0.00019452,2]
[424717537,1781086247000,-156.58,0.00019254,2]
[424717550,1781086247000,-556.85,0.00019452,2]
[424717534,1781086247000,-1022.62,0.00019178,2]
[424717490,1781086247000,-500.0,0.00019178,2]
[424717535,1781086247000,-1741.63674622,0.00019185,2]
[424717498,1781086247000,-868.24,0.00019178,2]
[424717502,1781086247000,-501.14506333,0.00019178,2]
[424717500,1781086247000,-684.36,0.00019178,2]
[424717504,1781086247000,-601.25753668,0.00019178,2]
[424717515,1781086247000,-500.0,0.00019178,2]
[424717516,1781086247000,-537.84,0.00019178,2]
[424717509,1781086247000,-151.0,0.00019178,2]
[424717512,1781086247000,-500.0,0.00019178,2]
[424717511,1781086247000,-1011.6,0.00019178,2]
[424717519,1781086247000,-728.97,0.00019178,2]
[424717520,1781086247000,-500.0,0.00019178,2]
[424717507,1781086247000,-501.14647546,0.00019178,2]
[424717521,1781086247000,-1510.92,0.00019178,2]
[424717524,1781086247000,-501.68275173,0.00019178,2]
[424717522,1781086247000,-500.0,0.00019178,2]
[424717529,1781086247000,-839.94,0.00019178,2]
[424717533,1781086247000,-839.94,0.00019178,2]
[424717528,1781086247000,-839.94,0.00019178,2]
[424717526,1781086247000,-500.0,0.00019178,2]
[424717527,1781086247000,-839.94,0.00019178,2]
[424717530,1781086247000,-839.94,0.00019178,2]
[424717531,1781086247000,-839.94,0.00019178,2]
[424717532,1781086247000,-839.94,0.00019178,2]
[424717536,1781086247000,-176.385527,0.00019238,2]
[424717606,1781086248000,-940.32,0.00019452,2]
[424717602,1781086248000,-500.0,0.00019452,2]
[424717601,1781086248000,-500.0,0.00019452,2]
[424717603,1781086248000,-15397.47,0.00019452,2]
[424717596,1781086248000,-500.0,0.00019452,2]
[424717599,1781086248000,-151.0,0.00019452,2]
[424717598,1781086248000,-151.0,0.00019452,2]
[424717597,1781086248000,-500.0,0.00019452,2]
[424717591,1781086248000,-500.0,0.00019452,2]
[424717605,1781086248000,-1113.2,0.00019452,2]
[424717600,1781086248000,-500.0,0.00019452,2]
[424717604,1781086248000,-500.0,0.00019452,2]
[424717613,1781086248000,-500.0,0.00019452,2]
[424717609,1781086248000,-1806.07,0.00019452,2]
[424717608,1781086248000,-500.0,0.00019452,2]
[424717610,1781086248000,-2257.91,0.00019452,2]
[424717611,1781086248000,-500.0,0.00019452,2]
[424717612,1781086248000,-500.0,0.00019452,2]
[424717615,1781086248000,-511.53,0.00019452,2]
[424717619,1781086248000,-4019.27,0.00019452,2]
[424717618,1781086248000,-500.0,0.00019452,2]
[424717617,1781086248000,-500.0,0.00019452,2]
[424717614,1781086248000,-500.0,0.00019452,2]
[424717616,1781086248000,-589.26269369,0.00019452,2]
[424717620,1781086248000,-585.57,0.00019452,2]
[424717595,1781086248000,-500.0,0.00019452,2]
[424717607,1781086248000,-500.0,0.00019452,2]
[424717594,1781086248000,-519.12,0.00019452,2]
[424717566,1781086248000,-500.0,0.00019452,2]
[424717592,1781086248000,-500.0,0.00019452,2]
[424717563,1781086248000,-280.57719357,0.00019452,2]
[424717564,1781086248000,-500.0,0.00019452,2]
[424717623,1781086248000,-500.0,0.00019452,2]
[424717565,1781086248000,-500.0,0.00019452,2]
[424717567,1781086248000,-500.0,0.00019452,2]
[424717568,1781086248000,-593.93,0.00019452,2]
[424717569,1781086248000,-500.0,0.00019452,2]
[424717570,1781086248000,-617.6,0.00019452,2]
[424717574,1781086248000,-570.19,0.00019452,2]
[424717572,1781086248000,-500.0,0.00019452,2]
[424717575,1781086248000,-500.0,0.00019452,2]
[424717571,1781086248000,-500.0,0.00019452,2]
[424717573,1781086248000,-500.0,0.00019452,2]
[424717576,1781086248000,-500.0,0.00019452,2]
[424717578,1781086248000,-500.0,0.00019452,2]
[424717577,1781086248000,-500.0,0.00019452,2]
[424717580,1781086248000,-500.0,0.00019452,2]
[424717582,1781086248000,-500.0,0.00019452,2]
[424717581,1781086248000,-500.0,0.00019452,2]
[424717585,1781086248000,-500.0,0.00019452,2]
[424717584,1781086248000,-500.0,0.00019452,2]
[424717583,1781086248000,-581.14,0.00019452,2]
[424717587,1781086248000,-500.0,0.00019452,2]
[424717586,1781086248000,-500.0,0.00019452,2]
[424717589,1781086248000,-500.0,0.00019452,2]
[424717588,1781086248000,-500.0,0.00019452,2]
[424717590,1781086248000,-738.27,0.00019452,2]
[424717593,1781086248000,-500.0,0.00019452,2]
[424717622,1781086248000,-897.86,0.00019452,2]
[424717579,1781086248000,-500.0,0.00019452,2]
[424717625,1781086248000,-862.63,0.00019452,2]
[424717651,1781086248000,-868.24,0.00019452,2]
[424717658,1781086248000,-500.0,0.00019452,2]
[424717654,1781086248000,-500.0,0.00019452,2]
[424717659,1781086248000,-1510.92,0.00019452,2]
[424717660,1781086248000,-500.0,0.00019452,2]
[424717662,1781086248000,-156.58,0.00019454,2]
[424717661,1781086248000,-500.0,0.00019452,2]
[424717664,1781086248000,-156.72977942,0.00019654,2]
[424717663,1781086248000,-156.58,0.00019554,2]
[424717665,1781086248000,-490.0,0.00019726,2]
[424717666,1781086248000,-1243.3265,0.00019726,2]
[424717670,1781086248000,-500.0,0.00019726,2]
[424717667,1781086248000,-270.0,0.00019726,2]
[424717671,1781086248000,-500.0,0.00019726,2]
[424717669,1781086248000,-556.85,0.00019726,2]
[424717672,1781086248000,-500.0,0.00019726,2]
[424717673,1781086248000,-500.0,0.00019726,2]
[424717675,1781086248000,-500.0,0.00019726,2]
[424717674,1781086248000,-500.0,0.00019726,2]
[424717677,1781086248000,-500.0,0.00019726,2]
[424717678,1781086248000,-500.0,0.00019726,2]
[424717680,1781086248000,-500.0,0.00019726,2]
[424717676,1781086248000,-500.0,0.00019726,2]
[424717679,1781086248000,-500.39517529,0.00019726,2]
[424717682,1781086248000,-500.0,0.00019726,2]
[424717681,1781086248000,-500.0,0.00019726,2]
[424717621,1781086248000,-1402.24,0.00019452,2]
[424717653,1781086248000,-1011.6,0.00019452,2]
[424717657,1781086248000,-728.97,0.00019452,2]
[424717668,1781086248000,-581.87,0.00019726,2]
[424717655,1781086248000,-500.0,0.00019452,2]
[424717626,1781086248000,-1811.15,0.00019452,2]
[424717656,1781086248000,-537.84,0.00019452,2]
[424717624,1781086248000,-906.36,0.00019452,2]
[424717627,1781086248000,-1251.98,0.00019452,2]
[424717628,1781086248000,-500.0,0.00019452,2]
[424717630,1781086248000,-675.04,0.00019452,2]
[424717632,1781086248000,-502.58794243,0.00019452,2]
[424717631,1781086248000,-3108.39,0.00019452,2]
[424717629,1781086248000,-249.73283287,0.00019452,2]
[424717633,1781086248000,-500.0,0.00019452,2]
[424717635,1781086248000,-2669.09,0.00019452,2]
[424717636,1781086248000,-1007.27,0.00019452,2]
[424717634,1781086248000,-1888.25,0.00019452,2]
[424717639,1781086248000,-500.0,0.00019452,2]
[424717637,1781086248000,-500.0,0.00019452,2]
[424717646,1781086248000,-826.97,0.00019452,2]
[424717650,1781086248000,-500.0,0.00019452,2]
[424717638,1781086248000,-3159.95,0.00019452,2]
[424717648,1781086248000,-500.0,0.00019452,2]
[424717647,1781086248000,-500.0,0.00019452,2]
[424717649,1781086248000,-2093.26,0.00019452,2]
[424717640,1781086248000,-4785.46,0.00019452,2]
[424717652,1781086248000,-684.36,0.00019452,2]
[424717644,1781086248000,-920.96,0.00019452,2]
[424717645,1781086248000,-500.0,0.00019452,2]
[424717641,1781086248000,-600.73,0.00019452,2]
[424717643,1781086248000,-500.0,0.00019452,2]
[424717642,1781086248000,-500.0,0.00019452,2]
[424717723,1781086249000,-500.0,0.00019726,2]
[424717726,1781086249000,-500.0,0.00019726,2]
[424717727,1781086249000,-500.0,0.00019726,2]
[424717724,1781086249000,-1806.07,0.00019726,2]
[424717717,1781086249000,-500.0,0.00019726,2]
[424717716,1781086249000,-500.0,0.00019726,2]
[424717719,1781086249000,-632.51,0.00019726,2]
[424717720,1781086249000,-1113.2,0.00019726,2]
[424717722,1781086249000,-500.0,0.00019726,2]
[424717718,1781086249000,-15397.47,0.00019726,2]
[424717725,1781086249000,-2257.91,0.00019726,2]
[424717721,1781086249000,-940.32,0.00019726,2]
[424717728,1781086249000,-500.0,0.00019726,2]
[424717742,1781086249000,-500.0,0.00019726,2]
[424717735,1781086249000,-1402.24,0.00019726,2]
[424717733,1781086249000,-4019.27,0.00019726,2]
[424717730,1781086249000,-511.53,0.00019726,2]
[424717731,1781086249000,-500.0,0.00019726,2]
[424717734,1781086249000,-585.57,0.00019726,2]
[424717732,1781086249000,-500.0,0.00019726,2]
[424717736,1781086249000,-897.86,0.00019726,2]
[424717737,1781086249000,-500.0,0.00019726,2]
[424717740,1781086249000,-1811.15,0.00019726,2]
[424717741,1781086249000,-1251.98,0.00019726,2]
[424717739,1781086249000,-862.63,0.00019726,2]
[424717738,1781086249000,-906.36,0.00019726,2]
[424717743,1781086249000,-675.04,0.00019726,2]
[424717715,1781086249000,-500.0,0.00019726,2]
[424717729,1781086249000,-500.0,0.00019726,2]
[424717713,1781086249000,-151.0,0.00019726,2]
[424717685,1781086249000,-593.93,0.00019726,2]
[424717712,1781086249000,-500.0,0.00019726,2]
[424717683,1781086249000,-500.0,0.00019726,2]
[424717684,1781086249000,-326.74597172,0.00019726,2]
[424717747,1781086249000,-2669.09,0.00019726,2]
[424717688,1781086249000,-500.0,0.00019726,2]
[424717686,1781086249000,-500.0,0.00019726,2]
[424717687,1781086249000,-500.0,0.00019726,2]
[424717691,1781086249000,-500.0,0.00019726,2]
[424717689,1781086249000,-500.0,0.00019726,2]
[424717696,1781086249000,-500.0,0.00019726,2]
[424717692,1781086249000,-500.0,0.00019726,2]
[424717693,1781086249000,-500.0,0.00019726,2]
[424717690,1781086249000,-500.0,0.00019726,2]
[424717694,1781086249000,-500.0,0.00019726,2]
[424717697,1781086249000,-322.938929,0.00019726,2]
[424717695,1781086249000,-500.0,0.00019726,2]
[424717698,1781086249000,-581.14,0.00019726,2]
[424717699,1781086249000,-500.0,0.00019726,2]
[424717700,1781086249000,-500.0,0.00019726,2]
[424717701,1781086249000,-500.0,0.00019726,2]
[424717702,1781086249000,-500.0,0.00019726,2]
[424717705,1781086249000,-738.27,0.00019726,2]
[424717704,1781086249000,-274.23509904,0.00019726,2]
[424717707,1781086249000,-500.0,0.00019726,2]
[424717706,1781086249000,-500.0,0.00019726,2]
[424717709,1781086249000,-519.12,0.00019726,2]
[424717703,1781086249000,-281.976098,0.00019726,2]
[424717708,1781086249000,-500.0,0.00019726,2]
[424717710,1781086249000,-500.0,0.00019726,2]
[424717711,1781086249000,-500.0,0.00019726,2]
[424717714,1781086249000,-151.0,0.00019726,2]
[424717745,1781086249000,-500.0,0.00019726,2]
[424717769,1781086249000,-728.97,0.00019726,2]
[424717746,1781086249000,-1888.25,0.00019726,2]
[424717787,1781086249000,-500.0,0.0002,2]
[424717781,1781086249000,-500.0,0.0002,2]
[424717786,1781086249000,-500.0,0.0002,2]
[424717748,1781086249000,-1007.27,0.00019726,2]
[424717785,1781086249000,-417.15472785,0.0002,3]
[424717784,1781086249000,-500.0,0.0002,2]
[424717788,1781086249000,-500.0,0.0002,2]
[424717790,1781086249000,-500.0,0.0002,2]
[424717789,1781086249000,-500.0,0.0002,2]
[424717791,1781086249000,-500.0,0.0002,2]
[424717793,1781086249000,-500.0,0.0002,2]
[424717794,1781086249000,-500.0,0.0002,2]
[424717792,1781086249000,-500.0,0.0002,2]
[424717780,1781086249000,-556.85,0.0002,2]
[424717797,1781086249000,-500.0,0.0002,2]
[424717795,1781086249000,-500.0,0.0002,2]
[424717800,1781086249000,-500.0,0.0002,2]
[424717799,1781086249000,-500.0,0.0002,2]
[424717798,1781086249000,-500.0,0.0002,2]
[424717801,1781086249000,-500.0,0.0002,2]
[424717803,1781086249000,-500.0,0.0002,2]
[424717802,1781086249000,-500.0,0.0002,2]
[424717806,1781086249000,-500.0,0.0002,2]
[424717804,1781086249000,-495.78443406,0.0002,2]
[424717807,1781086249000,-500.0,0.0002,2]
[424717809,1781086249000,-300.0,0.0002,4]
[424717805,1781086249000,-500.0,0.0002,2]
[424717808,1781086249000,-581.14,0.0002,2]
[424717796,1781086249000,-593.93,0.0002,2]
[424717778,1781086249000,-1243.3265,0.0002,2]
[424717782,1781086249000,-500.0,0.0002,2]
[424717779,1781086249000,-581.87,0.0002,2]
[424717744,1781086249000,-3108.39,0.00019726,2]
[424717749,1781086249000,-500.0,0.00019726,2]
[424717750,1781086249000,-3159.95,0.00019726,2]
[424717751,1781086249000,-500.0,0.00019726,2]
[424717752,1781086249000,-4785.46,0.00019726,2]
[424717753,1781086249000,-600.73,0.00019726,2]
[424717754,1781086249000,-500.0,0.00019726,2]
[424717755,1781086249000,-500.0,0.00019726,2]
[424717783,1781086249000,-40050.1640765,0.0002,3]
[424717760,1781086249000,-500.0,0.00019726,2]
[424717759,1781086249000,-500.0,0.00019726,2]
[424717756,1781086249000,-920.96,0.00019726,2]
[424717758,1781086249000,-826.97,0.00019726,2]
[424717761,1781086249000,-2093.26,0.00019726,2]
[424717757,1781086249000,-500.0,0.00019726,2]
[424717765,1781086249000,-1011.6,0.00019726,2]
[424717763,1781086249000,-868.24,0.00019726,2]
[424717777,1781086249000,-328.9116,0.0002,2]
[424717775,1781086249000,-825.0,0.00019898,2]
[424717771,1781086249000,-1510.92,0.00019726,2]
[424717772,1781086249000,-500.0,0.00019726,2]
[424717774,1781086249000,-954.37500426,0.00019868,2]
[424717776,1781086249000,-179.87408814,0.00019924,2]
[424717773,1781086249000,-500.0,0.00019726,2]
[424717768,1781086249000,-537.84,0.00019726,2]
[424717766,1781086249000,-500.0,0.00019726,2]
[424717767,1781086249000,-500.0,0.00019726,2]
[424717764,1781086249000,-684.36,0.00019726,2]
[424717762,1781086249000,-388.39235313,0.00019726,2]
[424717770,1781086249000,-500.0,0.00019726,2]
[424717860,1781086250000,-600.73,0.0002,2]
[424717853,1781086250000,-2669.09,0.0002,2]
[424717851,1781086250000,-3108.39,0.0002,2]
[424717852,1781086250000,-500.0,0.0002,2]
[424717850,1781086250000,-675.04,0.0002,2]
[424717844,1781086250000,-500.0,0.0002,2]
[424717843,1781086250000,-897.86,0.0002,2]
[424717847,1781086250000,-1811.15,0.0002,2]
[424717846,1781086250000,-862.63,0.0002,2]
[424717842,1781086250000,-1402.24,0.0002,2]
[424717845,1781086250000,-906.36,0.0002,2]
[424717848,1781086250000,-1251.98,0.0002,2]
[424717859,1781086250000,-4785.46,0.0002,2]
[424717849,1781086250000,-500.0,0.0002,2]
[424717855,1781086250000,-1007.27,0.0002,2]
[424717856,1781086250000,-500.0,0.0002,2]
[424717854,1781086250000,-1888.25,0.0002,2]
[424717858,1781086250000,-500.0,0.0002,2]
[424717857,1781086250000,-3159.95,0.0002,2]
[424717862,1781086250000,-500.0,0.0002,2]
[424717863,1781086250000,-920.96,0.0002,2]
[424717864,1781086250000,-500.0,0.0002,2]
[424717866,1781086250000,-292.44901931,0.0002,2]
[424717865,1781086250000,-826.97,0.0002,2]
[424717867,1781086250000,-500.0,0.0002,2]
[424717870,1781086250000,-684.36,0.0002,2]
[424717869,1781086250000,-868.24,0.0002,2]
[424717861,1781086250000,-567.95576903,0.0002,2]
[424717841,1781086250000,-585.57,0.0002,2]
[424717872,1781086250000,-500.0,0.0002,2]
[424717838,1781086250000,-500.0,0.0002,2]
[424717813,1781086250000,-500.0,0.0002,2]
[424717811,1781086250000,-500.0,0.0002,2]
[424717812,1781086250000,-500.0,0.0002,2]
[424717810,1781086250000,-500.0,0.0002,2]
[424717814,1781086250000,-738.27,0.0002,2]
[424717816,1781086250000,-500.0,0.0002,2]
[424717815,1781086250000,-500.0,0.0002,2]
[424717817,1781086250000,-266.4047581,0.0002,2]
[424717820,1781086250000,-277.6838074,0.0002,2]
[424717819,1781086250000,-500.0,0.0002,2]
[424717821,1781086250000,-493.61730754,0.0002,2]
[424717826,1781086250000,-15397.47,0.0002,2]
[424717823,1781086250000,-500.0,0.0002,2]
[424717824,1781086250000,-500.0,0.0002,2]
[424717825,1781086250000,-500.0,0.0002,2]
[424717822,1781086250000,-151.0,0.0002,2]
[424717818,1781086250000,-519.12,0.0002,2]
[424717827,1781086250000,-1113.2,0.0002,2]
[424717829,1781086250000,-500.0,0.0002,2]
[424717828,1781086250000,-940.32,0.0002,2]
[424717830,1781086250000,-500.0,0.0002,2]
[424717831,1781086250000,-1806.07,0.0002,2]
[424717832,1781086250000,-2257.91,0.0002,2]
[424717833,1781086250000,-500.0,0.0002,2]
[424717834,1781086250000,-500.0,0.0002,2]
[424717836,1781086250000,-500.0,0.0002,2]
[424717840,1781086250000,-4019.27,0.0002,2]
[424717835,1781086250000,-500.0,0.0002,2]
[424717837,1781086250000,-511.53,0.0002,2]
[424717839,1781086250000,-500.0,0.0002,2]
[424717871,1781086250000,-1011.6,0.0002,2]
[424717886,1781086250000,-500.0,0.00020273,2]
[424717875,1781086250000,-728.97,0.0002,2]
[424717908,1781086250000,-500.0,0.00020273,2]
[424717912,1781086250000,-500.0,0.00020273,2]
[424717910,1781086250000,-196.05298236,0.00020273,2]
[424717909,1781086250000,-500.0,0.00020273,2]
[424717914,1781086250000,-519.12,0.00020273,2]
[424717911,1781086250000,-738.27,0.00020273,2]
[424717913,1781086250000,-500.0,0.00020273,2]
[424717916,1781086250000,-500.0,0.00020273,2]
[424717915,1781086250000,-500.0,0.00020273,2]
[424717917,1781086250000,-500.0,0.00020273,2]
[424717919,1781086250000,-15397.47,0.00020273,2]
[424717918,1781086250000,-500.0,0.00020273,2]
[424717920,1781086250000,-1113.2,0.00020273,2]
[424717907,1781086250000,-500.0,0.00020273,2]
[424717924,1781086250000,-1806.07,0.00020273,2]
[424717923,1781086250000,-500.0,0.00020273,2]
[424717921,1781086250000,-940.32,0.00020273,2]
[424717925,1781086250000,-2257.91,0.00020273,2]
[424717922,1781086250000,-500.0,0.00020273,2]
[424717927,1781086250000,-500.0,0.00020273,2]
[424717926,1781086250000,-500.0,0.00020273,2]
[424717930,1781086250000,-511.53,0.00020273,2]
[424717929,1781086250000,-500.0,0.00020273,2]
[424717932,1781086250000,-500.0,0.00020273,2]
[424717931,1781086250000,-500.0,0.00020273,2]
[424717934,1781086250000,-585.57,0.00020273,2]
[424717933,1781086250000,-4019.27,0.00020273,2]
[424717935,1781086250000,-1402.24,0.00020273,2]
[424717928,1781086250000,-500.0,0.00020273,2]
[424717905,1781086250000,-500.0,0.00020273,2]
[424717873,1781086250000,-500.0,0.0002,2]
[424717902,1781086250000,-500.0,0.00020273,2]
[424717868,1781086250000,-2093.26,0.0002,2]
[424717874,1781086250000,-537.84,0.0002,2]
[424717877,1781086250000,-1510.92,0.0002,2]
[424717876,1781086250000,-500.0,0.0002,2]
[424717878,1781086250000,-500.0,0.0002,2]
[424717880,1781086250000,-581.87,0.00020273,2]
[424717879,1781086250000,-1243.3265,0.00020273,2]
[424717887,1781086250000,-500.0,0.00020273,2]
[424717906,1781086250000,-581.14,0.00020273,2]
[424717881,1781086250000,-556.85,0.00020273,2]
[424717883,1781086250000,-500.0,0.00020273,2]
[424717884,1781086250000,-500.0,0.00020273,2]
[424717885,1781086250000,-500.0,0.00020273,2]
[424717888,1781086250000,-500.0,0.00020273,2]
[424717882,1781086250000,-500.0,0.00020273,2]
[424717890,1781086250000,-500.0,0.00020273,2]
[424717889,1781086250000,-500.0,0.00020273,2]
[424717903,1781086250000,-500.0,0.00020273,2]
[424717898,1781086250000,-500.0,0.00020273,2]
[424717896,1781086250000,-500.0,0.00020273,2]
[424717895,1781086250000,-593.93,0.00020273,2]
[424717900,1781086250000,-500.0,0.00020273,2]
[424717904,1781086250000,-500.0,0.00020273,2]
[424717893,1781086250000,-500.0,0.00020273,2]
[424717894,1781086250000,-329.34837748,0.00020273,2]
[424717899,1781086250000,-500.0,0.00020273,2]
[424717901,1781086250000,-500.0,0.00020273,2]
[424717892,1781086250000,-500.0,0.00020273,2]
[424717891,1781086250000,-500.0,0.00020273,2]
[424717897,1781086250000,-500.0,0.00020273,2]
[424717980,1781086251000,-1307.4962,0.00020547,2]
[424717977,1781086251000,-150.45,0.000204,2]
[424717978,1781086251000,-796.0,0.000204,2]
[424717979,1781086251000,-517.21707223,0.00020531,2]
[424717981,1781086251000,-581.87,0.00020547,2]
[424717974,1781086251000,-457.0875069,0.000203,2]
[424717973,1781086251000,-463.8020157,0.000203,2]
[424717975,1781086251000,-825.0,0.00020318,2]
[424717971,1781086251000,-500.0,0.00020285,5]
[424717972,1781086251000,-500.0,0.00020285,5]
[424717969,1781086251000,-500.0,0.00020273,2]
[424717976,1781086251000,-272.24072525,0.000204,2]
[424717982,1781086251000,-556.85,0.00020547,2]
[424717998,1781086251000,-500.0,0.00020547,2]
[424717984,1781086251000,-500.0,0.00020547,2]
[424717985,1781086251000,-500.0,0.00020547,2]
[424717994,1781086251000,-500.0,0.00020547,2]
[424717993,1781086251000,-500.0,0.00020547,2]
[424717987,1781086251000,-500.0,0.00020547,2]
[424717986,1781086251000,-500.0,0.00020547,2]
[424717989,1781086251000,-500.0,0.00020547,2]
[424717988,1781086251000,-500.0,0.00020547,2]
[424717992,1781086251000,-500.0,0.00020547,2]
[424717990,1781086251000,-500.0,0.00020547,2]
[424717991,1781086251000,-500.0,0.00020547,2]
[424717996,1781086251000,-500.0,0.00020547,2]
[424717995,1781086251000,-593.93,0.00020547,2]
[424717970,1781086251000,-267.43228681,0.00020285,5]
[424717983,1781086251000,-500.0,0.00020547,2]
[424717968,1781086251000,-1510.92,0.00020273,2]
[424717947,1781086251000,-1888.25,0.00020273,2]
[424717962,1781086251000,-1011.6,0.00020273,2]
[424717997,1781086251000,-387.51818182,0.00020547,2]
[424717936,1781086251000,-897.86,0.00020273,2]